[Event "Asian Amateur Rapid Women 2024"]
[Site "Al Ain"]
[Date "2024.12.15"]
[Round "1.1"]
[White "Zhumabek, Nursaya"]
[Black "Charomova, Evguenia"]
[Result "1-0"]
[ECO "D02"]
[WhiteElo "1448"]
[BlackElo "1870"]
[Annotator "NA RC"]
[PlyCount "61"]
[EventDate "2024.12.15"]
[EventType "swiss"]
[EventCountry "UAE"]
[SourceTitle "playchess.com"]
[Source "ChessBase"]
[SourceQuality "1"]
[TimeControl "900+10"]

1. Nf3 {[%emt 0:00:02]} c5 {[%emt 0:00:10]} 2. g3 {[%emt 0:00:03]} d5 {[%emt 0:00:35]} 3. Bg2 {[%emt 0:00:05]} Nc6 {[%emt 0:00:45]} 4. d4 {[%emt 0:00:07]} c4 {[%emt 0:00:12]} 5. Nc3 {[%emt 0:00:19]} Nf6 {[%emt 0:00:24]} 6. O-O {[%emt 0:00:03]} e6 {[%emt 0:00:56]} 7. Bf4 {[%emt 0:00:05]} a6 {[%emt 0:00:34]} 8. Re1 {[%emt 0:00:27]} b5 {[%emt 0:00:13]} 9. a3 {[%emt 0:00:08]} Be7 {[%emt 0:01:02]} 10. e4 {[%emt 0:00:14]} O-O {[%emt 0:02:33]} 11. exd5 {[%emt 0:00:02]} exd5 {[%emt 0:00:47]} 12. Ne5 {[%emt 0:00:16]} Bb7 {[%emt 0:00:48]} 13. Bg5 {[%emt 0:00:25]} Na7 {[%emt 0:02:01]} 14. Bxf6 {[%emt 0:00:56]} Bxf6 {[%emt 0:01:13]} 15. Qf3 {[%emt 0:00:17]} Nc8 {[%emt 0:00:14]} 16. Nxd5 {[%emt 0:00:16]} Bxe5 {[%emt 0:00:17]} 17. dxe5 {[%emt 0:00:17]} Nb6 {[%emt 0:00:20]} 18. Nf6+ {[%emt 0:00:07]} gxf6 {[%emt 0:01:08]} 19. Qxb7 {[%emt 0:00:05]} fxe5 {[%emt 0:00:25]} 20. Rxe5 {[%emt 0:00:19]} Rb8 {[%emt 0:00:02]} 21. Qe4 {[%emt 0:00:13]} Qf6 {[%emt 0:00:22]} 22. Rh5 {[%emt 0:00:50]} Qg7 {[%emt 0:00:39]} 23. Qf5 {[%emt 0:00:21]} f6 {[%emt 0:00:13]} 24. Be4 {[%emt 0:00:11]} Rf7 {[%emt 0:00:23]} 25. Rh4 {[%emt 0:00:55]} Kh8 {[%emt 0:00:03]} 26. Qf4 {[%emt 0:00:09]} Rd8 {[%emt 0:00:11]} 27. Rxh7+ {[%emt 0:00:11]} Qxh7 {[%emt 0:00:20]} 28. Bxh7 {[%emt 0:00:02]} Kxh7 {[%emt 0:00:04]} 29. Re1 {[%emt 0:00:21]} a5 {[%emt 0:01:27]} 30. Qf5+ {[%emt 0:00:04]} Kg7 {[%emt 0:00:02]} 31. Qxb5 {[%emt 0:00:04]} 1-0

[Event "Asian Amateur Rapid Women 2024"]
[Site "Al Ain"]
[Date "2024.12.15"]
[Round "1.2"]
[White "Saeidpour, Mona"]
[Black "Latifah, Darmaki"]
[Result "1-0"]
[ECO "D51"]
[WhiteElo "1905"]
[BlackElo "1540"]
[Annotator "RC"]
[PlyCount "53"]
[EventDate "2024.12.15"]
[EventType "swiss"]
[EventCountry "UAE"]
[SourceTitle "playchess.com"]
[Source "ChessBase"]
[SourceQuality "1"]
[TimeControl "900+10"]

1. d4 {[%emt 0:00:02]} Nf6 {[%emt 0:00:01]} 2. c4 {[%emt 0:00:01]} e6 {[%emt 0:00:02]} 3. Nc3 {[%emt 0:00:01]} d5 {[%emt 0:00:02]} 4. Bg5 {[%emt 0:00:02]} Be7 {[%emt 0:00:03]} 5. Nf3 {[%emt 0:00:03]} O-O {[%emt 0:00:29]} 6. e3 {[%emt 0:00:11]} c6 {[%emt 0:00:22]} 7. cxd5 {[%emt 0:00:07]} cxd5 {[%emt 0:00:40]} 8. Bd3 {[%emt 0:00:25]} Nbd7 {[%emt 0:00:19]} 9. O-O {[%emt 0:00:11]} Re8 {[%emt 0:00:30]} 10. Qc2 {[%emt 0:00:36]} h6 {[%emt 0:00:12]} 11. Bh4 {[%emt 0:00:02]} a6 {[%emt 0:01:14]} 12. Bg3 {[%emt 0:01:14]} b5 {[%emt 0:00:39]} 13. Nxb5 {[%emt 0:00:50]} Bb7 {[%emt 0:06:39]} 14. Nc7 {[%emt 0:03:29]} Rc8 {[%emt 0:00:50]} 15. Nxe8 {[%emt 0:00:04]} Rxc2 {[%emt 0:01:03]} 16. Nxf6+ {[%emt 0:00:02]} Nxf6 {[%emt 0:00:09]} 17. Bxc2 {[%emt 0:00:00]} Qa5 {[%emt 0:01:37]} 18. a3 {[%emt 0:02:17]} Ne4 {[%emt 0:02:34]} 19. b4 {[%emt 0:01:59]} Qb6 {[%emt 0:00:23]} 20. Bxe4 {[%emt 0:01:32]} dxe4 {[%emt 0:00:03]} 21. Nd2 {[%emt 0:00:06]} Bc6 {[%emt 0:00:23]} 22. Rfc1 {[%emt 0:00:18]} f5 {[%emt 0:00:24]} 23. Rc3 {[%emt 0:01:22]} g5 {[%emt 0:00:08]} 24. Rac1 {[%emt 0:00:07]} Bd5 {[%emt 0:00:10]} 25. Nc4 {[%emt 0:00:34]} Qb5 {[%emt 0:00:13]} 26. Ne5 {[%emt 0:00:18]} Bd6 {[%emt 0:00:08]} 27. h3 {[%emt 0:00:35]} 1-0

[Event "Asian Amateur Rapid Women 2024"]
[Site "Al Ain"]
[Date "2024.12.15"]
[Round "1.5"]
[White "Rani Puja"]
[Black "Antonova, Nadezhda"]
[Result "0-1"]
[ECO "B92"]
[WhiteElo "1478"]
[BlackElo "1989"]
[Annotator "RC"]
[PlyCount "58"]
[EventDate "2024.12.15"]
[EventType "swiss"]
[EventCountry "UAE"]
[SourceTitle "playchess.com"]
[Source "ChessBase"]
[SourceQuality "1"]
[TimeControl "900+10"]

1. e4 {[%emt 0:00:10]} c5 {[%emt 0:00:10]} 2. Nf3 {[%emt 0:00:00]} d6 {[%emt 0:00:02]} 3. d4 {[%emt 0:00:00]} cxd4 {[%emt 0:00:02]} 4. Nxd4 {[%emt 0:00:00]} Nf6 {[%emt 0:00:01]} 5. Nc3 {[%emt 0:00:03]} a6 {[%emt 0:00:03]} 6. Be2 {[%emt 0:00:05]} e5 {[%emt 0:00:11]} 7. Nb3 {[%emt 0:00:09]} Be7 {[%emt 0:00:11]} 8. O-O {[%emt 0:00:19]} O-O {[%emt 0:00:35]} 9. f4 {[%emt 0:00:46]} exf4 {[%emt 0:01:49]} 10. Bxf4 {[%emt 0:00:10]} Nc6 {[%emt 0:00:08]} 11. Kh1 {[%emt 0:00:27]} Be6 {[%emt 0:00:28]} 12. Qe1 {[%emt 0:00:45]} Qc7 {[%emt 0:01:38]} 13. Qg3 {[%emt 0:01:09]} Kh8 {[%emt 0:01:39]} 14. Rad1 {[%emt 0:01:53]} Rfd8 {[%emt 0:00:03]} 15. Bg5 {[%emt 0:02:37]} Rac8 {[%emt 0:01:33]} 16. Rf2 {[%emt 0:00:52]} b5 {[%emt 0:02:47]} 17. a3 {[%emt 0:00:32]} Ne5 {[%emt 0:01:21]} 18. Nd4 {[%emt 0:02:38]} Nc4 {[%emt 0:02:54]} 19. Rdf1 {[%emt 0:02:13]} Nxb2 {[%emt 0:01:11]} 20. Rxf6 {[%emt 0:02:11]} gxf6 {[%emt 0:00:27]} 21. Nxe6 {[%emt 0:00:47]} fxe6 {[%emt 0:00:20]} 22. Bh6 {[%emt 0:00:44]} Rg8 {[%emt 0:00:10]} 23. Qh3 {[%emt 0:00:12]} Qxc3 {[%emt 0:00:14]} 24. Qxe6 {[%emt 0:00:28]} Qe5 {[%emt 0:00:06]} 25. Qh3 {[%emt 0:00:00]} Rxc2 {[%emt 0:00:22]} 26. Bf3 {[%emt 0:00:08]} Nd3 {[%emt 0:00:14]} 27. Be3 {[%emt 0:00:07]} d5 {[%emt 0:00:13]} 28. Bd1 {[%emt 0:00:11]} Rcxg2 {[%emt 0:00:14]} 29. Rg1 {[%emt 0:00:13]} Qxe4 {[%emt 0:00:12]} 0-1

[Event "Asian Amateur Rapid Women 2024"]
[Site "Al Ain"]
[Date "2024.12.15"]
[Round "1.7"]
[White "Olandag, Meghan Gabrielle"]
[Black "Ahlam Rashed"]
[Result "0-1"]
[ECO "C45"]
[WhiteElo "1479"]
[BlackElo "1987"]
[Annotator "RC"]
[PlyCount "108"]
[EventDate "2024.12.15"]
[EventType "swiss"]
[EventCountry "UAE"]
[SourceTitle "playchess.com"]
[Source "ChessBase"]
[SourceQuality "1"]
[TimeControl "900+10"]

1. e4 {[%emt 0:00:01]} e5 {[%emt 0:00:01]} 2. Nf3 {[%emt 0:00:02]} Nc6 {[%emt 0:00:01]} 3. d4 {[%emt 0:00:01]} exd4 {[%emt 0:00:02]} 4. Nxd4 {[%emt 0:00:02]} Qf6 {[%emt 0:00:06]} 5. Nxc6 {[%emt 0:00:09]} Bc5 {[%emt 0:01:54]} 6. Qd2 {[%emt 0:00:34]} dxc6 {[%emt 0:00:23]} 7. Bd3 {[%emt 0:00:37]} Bd7 {[%emt 0:00:53]} 8. Qf4 {[%emt 0:00:54]} O-O-O {[%emt 0:02:38]} 9. Qxf6 {[%emt 0:02:36]} Nxf6 {[%emt 0:00:02]} 10. Bg5 {[%emt 0:00:02]} h6 {[%emt 0:01:25]} 11. Bxf6 {[%emt 0:01:55]} gxf6 {[%emt 0:00:01]} 12. Nc3 {[%emt 0:00:30]} Rhg8 {[%emt 0:00:13]} 13. g3 {[%emt 0:01:31]} Bg4 {[%emt 0:01:02]} 14. Ne2 {[%emt 0:01:24]} Bb4+ {[%emt 0:00:57]} 15. Nc3 {[%emt 0:00:39]} Bf3 {[%emt 0:00:49]} 16. Rf1 {[%emt 0:00:32]} Rge8 {[%emt 0:00:12]} 17. a3 {[%emt 0:02:11]} Bxe4 {[%emt 0:01:05]} 18. Kd1 {[%emt 0:01:29]} Bxc3 {[%emt 0:01:18]} 19. bxc3 {[%emt 0:00:11]} Bxd3 {[%emt 0:00:29]} 20. cxd3 {[%emt 0:00:04]} Rxd3+ {[%emt 0:00:03]} 21. Kc2 {[%emt 0:00:06]} Rf3 {[%emt 0:00:22]} 22. Rad1 {[%emt 0:00:40]} Re2+ {[%emt 0:00:57]} 23. Rd2 {[%emt 0:00:20]} Rxd2+ {[%emt 0:00:31]} 24. Kxd2 {[%emt 0:00:02]} c5 {[%emt 0:00:13]} 25. a4 {[%emt 0:00:52]} c6 {[%emt 0:00:18]} 26. h4 {[%emt 0:00:42]} Kc7 {[%emt 0:00:21]} 27. Re1 {[%emt 0:00:36]} Rxf2+ {[%emt 0:00:07]} 28. Ke3 {[%emt 0:00:01]} Rf5 {[%emt 0:00:34]} 29. Kd2 {[%emt 0:00:16]} Re5 {[%emt 0:00:04]} 30. Rf1 {[%emt 0:00:04]} f5 {[%emt 0:00:18]} 31. g4 {[%emt 0:00:36]} fxg4 {[%emt 0:00:05]} 32. Rxf7+ {[%emt 0:00:02]} Kb6 {[%emt 0:00:02]} 33. Rf6 {[%emt 0:00:09]} h5 {[%emt 0:00:06]} 34. Rf7 {[%emt 0:00:11]} g3 {[%emt 0:00:45]} 35. Rg7 {[%emt 0:00:06]} Re4 {[%emt 0:00:02]} 36. Rxg3 {[%emt 0:00:19]} Rxh4 {[%emt 0:00:02]} 37. Kd3 {[%emt 0:00:13]} Rxa4 {[%emt 0:00:03]} 38. Rh3 {[%emt 0:00:03]} h4 {[%emt 0:00:02]} 39. Rh1 {[%emt 0:00:12]} Rg4 {[%emt 0:00:02]} 40. Rb1+ {[%emt 0:00:05]} Kc7 {[%emt 0:00:03]} 41. Rf1 {[%emt 0:00:25]} a5 {[%emt 0:00:06]} 42. Rf7+ {[%emt 0:00:15]} Kb6 {[%emt 0:00:01]} 43. c4 {[%emt 0:00:14]} a4 {[%emt 0:00:03]} 44. Kc3 {[%emt 0:00:14]} h3 {[%emt 0:00:02]} 45. Rh7 {[%emt 0:00:06]} Rg3+ {[%emt 0:00:01]} 46. Kb2 {[%emt 0:00:02]} a3+ {[%emt 0:00:06]} 47. Ka2 {[%emt 0:00:05]} Ka6 {[%emt 0:00:14]} 48. Rh8 {[%emt 0:00:06]} b5 {[%emt 0:00:10]} 49. cxb5+ {[%emt 0:00:21]} cxb5 {[%emt 0:00:02]} 50. Rh6+ {[%emt 0:00:04]} Ka5 {[%emt 0:00:02]} 51. Rh8 {[%emt 0:00:02]} Kb4 {[%emt 0:00:06]} 52. Rh4+ {[%emt 0:00:04]} c4 {[%emt 0:00:01]} 53. Rh5 {[%emt 0:00:06]} Rg2+ {[%emt 0:04:35]} 54. Ka1 {[%emt 0:00:05]} h2 {[%emt 0:00:00]} 0-1

[Event "Asian Amateur Rapid Women 2024"]
[Site "Al Ain"]
[Date "2024.12.15"]
[Round "1.9"]
[White "Shamsa, Amer"]
[Black "Al Dhaffari, Salma"]
[Result "1-0"]
[ECO "B22"]
[WhiteElo "1465"]
[BlackElo "1619"]
[Annotator "NA"]
[PlyCount "75"]
[EventDate "2024.12.15"]
[EventType "swiss"]
[EventCountry "UAE"]
[SourceTitle "playchess.com"]
[Source "ChessBase"]
[SourceQuality "1"]
[TimeControl "900+10"]

1. e4 {[%emt 0:00:02]} c5 {[%emt 0:00:01]} 2. Nf3 {[%emt 0:00:02]} e6 {[%emt 0:00:01]} 3. c3 {[%emt 0:00:02]} Nc6 {[%emt 0:00:07]} 4. d4 {[%emt 0:00:02]} cxd4 {[%emt 0:00:02]} 5. cxd4 {[%emt 0:00:02]} a6 {[%emt 0:00:22]} 6. Nc3 {[%emt 0:00:19]} Bb4 {[%emt 0:00:01]} 7. Bd2 {[%emt 0:00:03]} Nf6 {[%emt 0:00:27]} 8. Bd3 {[%emt 0:00:19]} O-O {[%emt 0:01:14]} 9. O-O {[%emt 0:00:25]} d5 {[%emt 0:00:20]} 10. e5 {[%emt 0:00:10]} Nd7 {[%emt 0:00:21]} 11. Qc2 {[%emt 0:01:04]} h6 {[%emt 0:00:32]} 12. Rfe1 {[%emt 0:01:07]} b5 {[%emt 0:01:32]} 13. Be3 {[%emt 0:01:32]} Bb7 {[%emt 0:00:27]} 14. a3 {[%emt 0:00:22]} Be7 {[%emt 0:01:25]} 15. Rac1 {[%emt 0:00:34]} Rc8 {[%emt 0:00:12]} 16. Qb1 {[%emt 0:00:13]} Na5 {[%emt 0:00:30]} 17. b4 {[%emt 0:01:59]} Nc4 {[%emt 0:00:06]} 18. Qa2 {[%emt 0:01:38]} Nxe3 {[%emt 0:00:39]} 19. fxe3 {[%emt 0:00:21]} Nb6 {[%emt 0:00:32]} 20. Bb1 {[%emt 0:01:05]} Nc4 {[%emt 0:01:34]} 21. Nd2 {[%emt 0:01:05]} Bg5 {[%emt 0:02:10]} 22. Nxc4 {[%emt 0:00:20]} dxc4 {[%emt 0:00:01]} 23. Qc2 {[%emt 0:00:10]} g6 {[%emt 0:00:21]} 24. Ne4 {[%emt 0:00:15]} Bxe4 {[%emt 0:00:49]} 25. Qxe4 {[%emt 0:00:04]} Qd5 {[%emt 0:01:38]} 26. Qg4 {[%emt 0:00:41]} Kh7 {[%emt 0:01:44]} 27. h4 {[%emt 0:01:04]} Be7 {[%emt 0:00:08]} 28. h5 {[%emt 0:00:04]} Rg8 {[%emt 0:00:29]} 29. Rf1 {[%emt 0:01:56]} Rcf8 {[%emt 0:00:24]} 30. hxg6+ {[%emt 0:00:20]} fxg6 {[%emt 0:00:26]} 31. Rxf8 {[%emt 0:00:13]} Bxf8 {[%emt 0:00:01]} 32. Rf1 {[%emt 0:00:06]} Qd8 {[%emt 0:00:57]} 33. Rf7+ {[%emt 0:00:28]} Kh8 {[%emt 0:00:01]} 34. Bxg6 {[%emt 0:00:18]} Bg7 {[%emt 0:00:48]} 35. Qh5 {[%emt 0:01:34]} Qg5 {[%emt 0:00:01]} 36. Qxg5 {[%emt 0:00:10]} hxg5 {[%emt 0:00:02]} 37. Ra7 {[%emt 0:00:02]} Bxe5 {[%emt 0:00:06]} 38. Rh7# {[%emt 0:00:05]} 1-0

[Event "Asian Amateur Rapid Women 2024"]
[Site "Al Ain"]
[Date "2024.12.15"]
[Round "1.10"]
[White "Wijesuriya, G P Y"]
[Black "Mikheeva, Vasilisa"]
[Result "1-0"]
[ECO "B23"]
[WhiteElo "1867"]
[BlackElo "1436"]
[Annotator "NA RC"]
[PlyCount "79"]
[EventDate "2024.12.15"]
[EventType "swiss"]
[EventCountry "UAE"]
[SourceTitle "playchess.com"]
[Source "ChessBase"]
[SourceQuality "1"]
[TimeControl "900+10"]

1. e4 {[%emt 0:00:13]} c5 {[%emt 0:00:01]} 2. Nc3 {[%emt 0:00:02]} e6 {[%emt 0:00:02]} 3. f4 {[%emt 0:00:09]} a6 {[%emt 0:00:03]} 4. Nf3 {[%emt 0:00:02]} b5 {[%emt 0:00:02]} 5. d3 {[%emt 0:00:09]} Bb7 {[%emt 0:00:01]} 6. Be3 {[%emt 0:00:02]} Nc6 {[%emt 0:00:06]} 7. e5 {[%emt 0:00:05]} d6 {[%emt 0:00:07]} 8. Ne4 {[%emt 0:00:06]} dxe5 {[%emt 0:00:43]} 9. fxe5 {[%emt 0:00:35]} Qc7 {[%emt 0:00:18]} 10. Bxc5 {[%emt 0:02:17]} Bxc5 {[%emt 0:00:31]} 11. Nxc5 {[%emt 0:00:03]} Nxe5 {[%emt 0:00:42]} 12. Nxb7 {[%emt 0:00:21]} Nxf3+ {[%emt 0:00:08]} 13. Qxf3 {[%emt 0:00:14]} Rb8 {[%emt 0:00:26]} 14. Qg4 {[%emt 0:02:13]} Qe5+ {[%emt 0:01:13]} 15. Be2 {[%emt 0:00:06]} Rxb7 {[%emt 0:00:08]} 16. O-O {[%emt 0:00:47]} Nh6 {[%emt 0:00:11]} 17. Qf3 {[%emt 0:00:22]} O-O {[%emt 0:00:09]} 18. Qxb7 {[%emt 0:00:04]} Qxe2 {[%emt 0:00:23]} 19. Rac1 {[%emt 0:00:40]} Qe5 {[%emt 0:00:36]} 20. h3 {[%emt 0:01:44]} Nf5 {[%emt 0:00:42]} 21. Rfe1 {[%emt 0:00:43]} Qxb2 {[%emt 0:01:09]} 22. Qxa6 {[%emt 0:00:18]} Qd4+ {[%emt 0:01:11]} 23. Kh2 {[%emt 0:01:44]} Qd5 {[%emt 0:00:44]} 24. Qb6 {[%emt 0:00:28]} Rc8 {[%emt 0:01:38]} 25. c4 {[%emt 0:00:31]} bxc4 {[%emt 0:01:12]} 26. dxc4 {[%emt 0:00:11]} Qa8 {[%emt 0:01:38]} 27. c5 {[%emt 0:01:00]} Qxa2 {[%emt 0:01:22]} 28. Qb7 {[%emt 0:00:52]} Rd8 {[%emt 0:00:35]} 29. c6 {[%emt 0:00:29]} Nd6 {[%emt 0:03:01]} 30. Qc7 {[%emt 0:00:32]} Qa8 {[%emt 0:00:20]} 31. Rcd1 {[%emt 0:00:14]} h6 {[%emt 0:00:34]} 32. Rxd6 {[%emt 0:00:06]} Rxd6 {[%emt 0:00:08]} 33. Qxd6 {[%emt 0:00:03]} Qc8 {[%emt 0:00:12]} 34. c7 {[%emt 0:00:03]} Kh7 {[%emt 0:00:07]} 35. Qd8 {[%emt 0:00:04]} Qxd8 {[%emt 0:00:05]} 36. cxd8=Q {[%emt 0:03:38]} g6 {[%emt 0:00:11]} 37. Qf6 {[%emt 0:00:00]} Kg8 {[%emt 0:00:03]} 38. Rd1 {[%emt 0:00:00]} Kh7 {[%emt 0:00:14]} 39. Rd8 {[%emt 0:00:00]} h5 {[%emt 0:00:09]} 40. Rh8# {[%emt 0:00:40]} 1-0

[Event "Asian Amateur Rapid Women 2024"]
[Site "Al Ain"]
[Date "2024.12.15"]
[Round "1.12"]
[White "Daneshpour, Aram"]
[Black "Lulwa Khalifa Alhammadi"]
[Result "1-0"]
[ECO "B54"]
[WhiteElo "1563"]
[BlackElo "1621"]
[Annotator "NA"]
[PlyCount "57"]
[EventDate "2024.12.15"]
[EventType "swiss"]
[EventCountry "UAE"]
[SourceTitle "playchess.com"]
[Source "ChessBase"]
[SourceQuality "1"]
[TimeControl "900+10"]

1. e4 {[%emt 0:00:03]} c5 {[%emt 0:00:02]} 2. Nf3 {[%emt 0:00:05]} Nc6 {[%emt 0:00:02]} 3. d4 {[%emt 0:00:05]} cxd4 {[%emt 0:00:04]} 4. Nxd4 {[%emt 0:00:03]} Nf6 {[%emt 0:00:04]} 5. Nc3 {[%emt 0:00:04]} e5 {[%emt 0:00:05]} 6. Nf5 {[%emt 0:00:24]} d6 {[%emt 0:00:07]} 7. Bg5 {[%emt 0:01:04]} Bxf5 {[%emt 0:02:32]} 8. exf5 {[%emt 0:00:04]} Nd4 {[%emt 0:00:42]} 9. g4 {[%emt 0:03:40]} Qb6 {[%emt 0:03:29]} 10. Bd3 {[%emt 0:06:40]} Qc6 {[%emt 0:01:33]} 11. Rf1 {[%emt 0:04:10]} Nf3+ {[%emt 0:00:17]} 12. Ke2 {[%emt 0:00:01]} Nxg5 {[%emt 0:00:14]} 13. Bb5 {[%emt 0:00:02]} Qxb5+ {[%emt 0:00:18]} 14. Nxb5 {[%emt 0:00:01]} Kd7 {[%emt 0:00:42]} 15. f3 {[%emt 0:00:26]} a6 {[%emt 0:00:04]} 16. Nc3 {[%emt 0:00:04]} e4 {[%emt 0:00:17]} 17. Nxe4 {[%emt 0:00:17]} Ngxe4 {[%emt 0:00:08]} 18. fxe4 {[%emt 0:00:01]} Re8 {[%emt 0:00:10]} 19. Kf3 {[%emt 0:00:35]} Rxe4 {[%emt 0:00:07]} 20. g5 {[%emt 0:00:09]} Re5 {[%emt 0:00:22]} 21. gxf6 {[%emt 0:00:03]} Rxf5+ {[%emt 0:00:01]} 22. Kg2 {[%emt 0:00:04]} Rxf6 {[%emt 0:00:06]} 23. Rxf6 {[%emt 0:00:02]} gxf6 {[%emt 0:00:02]} 24. Qg4+ {[%emt 0:00:03]} Kc7 {[%emt 0:00:11]} 25. Qc4+ {[%emt 0:00:07]} Kb6 {[%emt 0:00:06]} 26. Qxf7 {[%emt 0:00:16]} Bh6 {[%emt 0:00:28]} 27. Rd1 {[%emt 0:00:14]} Bf4 {[%emt 0:00:15]} 28. Qxf6 {[%emt 0:00:13]} Rg8+ {[%emt 0:00:10]} 29. Kf3 {[%emt 0:00:03]} 1-0

[Event "Asian Amateur Rapid Women 2024"]
[Site "Al Ain"]
[Date "2024.12.15"]
[Round "1.15"]
[White "Al Khoori, Noora Mahmood Abdull"]
[Black "Bhandari, Pooja"]
[Result "1-0"]
[ECO "C02"]
[WhiteElo "1513"]
[BlackElo "1684"]
[Annotator "NA"]
[PlyCount "71"]
[EventDate "2024.12.15"]
[EventType "swiss"]
[EventCountry "UAE"]
[SourceTitle "playchess.com"]
[Source "ChessBase"]
[SourceQuality "1"]
[TimeControl "900+10"]

1. e4 {[%emt 0:00:04]} e6 {[%emt 0:00:04]} 2. d4 {[%emt 0:00:03]} d5 {[%emt 0:00:03]} 3. e5 {[%emt 0:00:24]} c5 {[%emt 0:00:10]} 4. f4 {[%emt 0:02:02]} Qb6 {[%emt 0:00:30]} 5. Nf3 {[%emt 0:00:18]} Bd7 {[%emt 0:00:27]} 6. b3 {[%emt 0:02:17]} Bb5 {[%emt 0:00:42]} 7. Bxb5+ {[%emt 0:00:12]} Qxb5 {[%emt 0:00:02]} 8. Nc3 {[%emt 0:00:46]} Qc6 {[%emt 0:02:33]} 9. Bb2 {[%emt 0:01:13]} Ne7 {[%emt 0:01:16]} 10. O-O {[%emt 0:00:57]} Nf5 {[%emt 0:00:24]} 11. Qd3 {[%emt 0:02:48]} Be7 {[%emt 0:01:25]} 12. Rad1 {[%emt 0:00:47]} O-O {[%emt 0:01:49]} 13. g4 {[%emt 0:01:33]} Nh6 {[%emt 0:00:29]} 14. h3 {[%emt 0:01:15]} Nd7 {[%emt 0:01:57]} 15. Bc1 {[%emt 0:00:06]} Nb6 {[%emt 0:00:44]} 16. f5 {[%emt 0:00:15]} exf5 {[%emt 0:00:20]} 17. Bxh6 {[%emt 0:00:18]} Qxh6 {[%emt 0:00:11]} 18. Qxf5 {[%emt 0:00:50]} Qe3+ {[%emt 0:00:49]} 19. Rf2 {[%emt 0:00:46]} Qxc3 {[%emt 0:00:18]} 20. Rd3 {[%emt 0:00:08]} Qa1+ {[%emt 0:00:27]} 21. Kg2 {[%emt 0:00:03]} cxd4 {[%emt 0:00:26]} 22. e6 {[%emt 0:00:36]} g6 {[%emt 0:01:42]} 23. exf7+ {[%emt 0:00:12]} Rxf7 {[%emt 0:00:07]} 24. Qe6 {[%emt 0:00:06]} Kg7 {[%emt 0:00:50]} 25. Rf1 {[%emt 0:00:54]} Qxa2 {[%emt 0:00:11]} 26. Rxd4 {[%emt 0:00:17]} Qxc2+ {[%emt 0:00:11]} 27. Rd2 {[%emt 0:00:14]} Qxb3 {[%emt 0:00:20]} 28. Qe5+ {[%emt 0:00:12]} Bf6 {[%emt 0:00:14]} 29. Qe6 {[%emt 0:00:09]} Re7 {[%emt 0:00:14]} 30. Qd6 {[%emt 0:00:11]} Rae8 {[%emt 0:00:16]} 31. g5 {[%emt 0:00:05]} Rd7 {[%emt 0:00:39]} 32. gxf6+ {[%emt 0:00:03]} Kh8 {[%emt 0:00:21]} 33. Qf4 {[%emt 0:00:03]} Rf7 {[%emt 0:00:06]} 34. Ng5 {[%emt 0:00:04]} Rff8 {[%emt 0:00:09]} 35. f7 {[%emt 0:00:04]} Re3 {[%emt 0:00:07]} 36. Qf6# {[%emt 0:00:03]} 1-0